Cogmind - Beta 15 @@@ ROGUE MODE // 2025.07.01 @ 03:13:24 Player: Fangrelle Result: Destroyed by Piercing Trap Performance ------------- Evolutions (0) 0 Regions Visited (3) 600 Robots Destroyed (40) 200 Value Destroyed (804) 804 Prototype IDs (0) 0 Alien Tech Used (0) 0 Bonus (0) 0 TOTAL SCORE: 1604 Bonus ------- None Cogmind --------- Core Integrity 0/250 Matter 267/300 Energy 98/100 System Corruption 0% Temperature Cool (1) Movement Treading (160) Location -10/Subcaves Parts ------- > --- POWER (1) -------- Subdweller Power Source > --- PROPULSION (2) --- Spiked Treads > --- UTILITY (2) ------ Small Storage Unit > --- WEAPON (2) ------- Battle Cannon Mining Claw > --- INVENTORY (8) ---- Cargo Storage Unit High-capacity Matter Pod (200) Experimental Sensor Array Targeting Computer Grenade Launcher Rocket Launcher Mining Laser Peak State ------------ > --- POWER ------------ Light Nuclear Core > --- PROPULSION ------- Light Treads Light Treads > --- UTILITY ---------- Small Storage Unit Sensor Array > --- WEAPON ----------- Assault Rifle Light Assault Rifle > --- INVENTORY -------- Light Treads Improved Heat Sink Cargo Storage Unit Targeting Computer Tractor Beam Grenade Launcher Grenade Launcher [Rating: 10] Favorites ----------- Power Ion Engine Engine Ion Engine Power Core Light Nuclear Core Propulsion Light Treads Treads Light Treads Leg Aluminum Leg Utility Small Storage Unit Device Tractor Beam Storage Small Storage Unit Weapon Grenade Launcher Energy Gun Medium Laser Ballistic Gun Assault Rifle Ballistic Cannon Battle Cannon Launcher Grenade Launcher Special Weapon Mining Laser Slashing Weapon Mining Claw Build | -11 -10 -10 -10 ------- Run | Yrd Mat Min Sub Slots Evolved . | . . . . Power . | . . . . Propulsion . | . . . . Utility . | . . . . Weapon . | . . . . Parts Attached 19 | . 10 5 4 Power 4 | . 3 . 1 Engine 3 | . 2 . 1 Core 1 | . 1 . . Reactor . | . . . . Propulsion 4 | . 2 1 1 Treads 4 | . 2 1 1 Leg . | . . . . Wheel . | . . . . Hover . | . . . . Flight . | . . . . Utility 4 | . 3 1 . Device 2 | . 1 1 . Storage 2 | . 2 . . Processor . | . . . . Hackware . | . . . . Protection . | . . . . Artifact . | . . . . Weapon 7 | . 2 3 2 Energy Gun . | . . . . Energy Cannon . | . . . . Ballistic Gun 1 | . 1 . . Ballistic Cannon 2 | . . 1 1 Launcher 2 | . 1 1 . Special Weapon 1 | . . 1 . Impact Weapon . | . . . . Slashing Weapon 1 | . . . 1 Piercing Weapon . | . . . . Special Melee Weapon . | . . . . Unidentified Prototypes . | . . . . Parts Lost 7 | . 2 2 3 Power . | . . . . Propulsion 3 | . 1 1 1 Utility 1 | . . . 1 Weapon 3 | . 1 1 1 Highest Loss Streak 2 | . 1 2 2 To Critical Strikes 1 | . . . 1 Average Backups 6 | 6 6 6 7 Power . | 1 . . . Propulsion . | 4 2 . . Utility 3 | . 1 4 4 Weapon 1 | 1 1 2 2 Tool/Special . | . . . . Unused Backups 16 | . 8 3 5 Power 2 | . 2 . . Propulsion 4 | . 4 . . Utility 5 | . . 1 4 Weapon 5 | . 2 2 1 Tool/Special . | . . . . Average Slot Usage (%) 85 | . 89 89 72 Engine 13 | . 13 14 14 Treads 14 | . 6 19 13 Leg 6 | . 19 . . Device 9 | . 7 14 1 Storage 13 | . 13 14 14 Energy Gun 2 | . 6 . . Ballistic Gun 6 | . 18 . . Ballistic Cannon 5 | . . 5 13 Launcher 11 | . 2 19 10 Peak Build Rating 10 | 6 10 8 9 Average Rating 7 | 6 6 7 8 On Entrance 6 | 6 6 6 7 Naked Turns . | . . . . Heaviest Build 149 | 14 149 17 17 Greatest Support 40 | 20 40 40 20 Greatest Overweight (x) 7 | . 7 . 5 Average Overweight (x) . | . . . . Largest Inventory Capacity 30 | 8 30 8 8 Average Capacity 10 | 8 14 8 8 Most Carried 8 | 6 8 8 8 Average Carried 7 | 6 7 7 8 Final Capacity 8 | 8 8 8 8 Final Carried 8 | 6 7 8 8 Class Distribution -------------------- 90% | Mutant 9% | Hauler-Mutant Dominant Class ---------------- Mutant | -10/Materials Mutant | -10/Mines Mutant | -10/Subcaves Resources | -11 -10 -10 -10 ----------- Run | Yrd Mat Min Sub Matter Collected 878 | 200 246 227 205 Remotely 105 | . . 66 39 Salvage Created 867 | . 589 85 193 Parts 72 | . 35 27 10 Haulers Intercepted . | . . . . Recyclers Shooed . | . . . . Parts Field Recycled . | . . . . Retrieved Matter . | . . . . Parts Self-Destructed . | . . . . Prevented . | . . . . Kills | -11 -10 -10 -10 ------- Run | Yrd Mat Min Sub Combat Hostiles Destroyed 31 | . 12 15 4 Guns 11 | . 11 . . Cannons 2 | . . . 2 AOE 18 | . 1 15 2 Classes Destroyed 6 | . 3 2 1 Worker 5 | . 5 . . Tunneler 1 | . . 1 . Watcher 3 | . 3 . . Swarmer 15 | . . 15 . Grunt 12 | . 12 . . Subdweller 4 | . . . 4 Best Kill Streak 4 | . 4 4 2 Combat Bots Only 3 | . 3 3 2 Max Kills in Single Turn 3 | . 3 3 1 Gunslinging 1 | . 1 . . Exploded 3 | . 1 3 1 Melee . | . . . . Uniques/NPCs Destroyed . | . . . . Combat | -11 -10 -10 -10 -------- Run | Yrd Mat Min Sub Hostile Shots Fired 142 | . 101 26 15 Missed 45 | . 34 7 4 Hits 97 | . 67 19 11 Projectile 97 | . 67 19 11 Critical Strikes 2 | . 1 . 1 Damage Taken 1472 | . 846 281 345 Core 259 | . 147 13 99 Absorbed by Shields . | . . . . Core Remaining (%) 100 | 100 . . . Volleys Fired 105 | . 66 9 30 Largest 2 | . 2 2 2 Hottest 70 | . 70 60 63 Shots Fired 166 | . 114 17 35 Gun 115 | . 112 3 . Cannon 27 | . . . 27 Launcher 24 | . 2 14 8 Special . | . . . . Kinetic 128 | . 98 3 27 Thermal 14 | . 14 . . Explosive 24 | . 2 14 8 Electromagnetic . | . . . . Robot Hit Streak 11 | . 10 3 11 Robot Miss Streak 3 | . 3 2 1 Penetration Max . | . . . . Secondary Targets 4 | . 4 . . Max Gunslinging Chain 1 | . 1 . . Shots Hit Robots 100 | . 69 6 25 Core Hits 67 | . 39 18 10 Critical Kills . | . . . . Critical Parts Destroyed . | . . . . Critical Strikes 1 | . 1 . . Burn 1 | . 1 . . Melee Attacks . | . . . . Impact . | . . . . Slashing . | . . . . Piercing . | . . . . Sneak Attacks . | . . . . Combat Hostiles . | . . . . Follow-up Attacks . | . . . . Damage Inflicted 2487 | . 922 766 799 Guns 757 | . 743 14 . Cannons 442 | . . . 442 Explosions 1279 | . 175 747 357 Melee . | . . . . Ramming 9 | . 4 5 . Kinetic 1100 | . 644 14 442 Thermal 99 | . 99 . . Explosive 1279 | . 175 747 357 Electromagnetic . | . . . . Impact . | . . . . Slashing . | . . . . Piercing . | . . . . Highest Corruption . | . . . . Average Corruption . | . . . . Corruption Purged . | . . . . Corruption Blocked . | . . . . Overload Shots . | . . . . Overflow Damage 43 | . . 43 . Projectiles . | . . . . Explosions 43 | . . 43 . Melee . | . . . . Knockbacks 4 | . . . 4 Impact . | . . . . Kinetic 4 | . . . 4 Secondary . | . . . . Self-Inflicted Damage 215 | . 7 132 76 Shots 10 | . 1 5 4 Rammed 5 | . 3 2 . Targets Rammed 6 | . 4 2 . Kicked . | . . . . Crushed 1 | . 1 . . Highest Temperature 201 | . 201 10 . Average Temperature 46 | . 48 7 . Received Heat Transfer 516 | . 480 . 36 Siege Activations . | . . . . Martial Activations . | . . . . Shielding Activations . | . . . . Robots Disrupted . | . . . . Combat Hostiles . | . . . . Robots Corrupted . | . . . . Combat Hostiles . | . . . . Parts Fried . | . . . . Impact Corruptions . | . . . . Robots Melted . | . . . . Combat Hostiles . | . . . . Parts Melted . | . . . . Heat Transferred 370 | . 370 . . Parts Sabotaged . | . . . . Parts Stolen . | . . . . Parts Stripped . | . . . . Power Chain Reactions . | . . . . Alert | -11 -10 -10 -10 ------- Run | Yrd Mat Min Sub Maximum Alert Level . | . . . . Low Security (%) 100 | 100 100 100 . Level 1 . | . . . . Level 2 . | . . . . Level 3 . | . . . . Level 4 . | . . . . Level 5 . | . . . . High Security . | . . . . Max Security . | . . . . Peak Influence 180 | . 164 180 . Initial 49 | . . 49 . Average 58 | . 45 67 . Influence Increases 817 | . 381 436 . Destroy 0b10 Robot/C 540 | . 240 300 . Destroy 0b10 Robot/NC 45 | . 40 5 . Destroy Leader 106 | . 56 50 . Allied During Kill 4 | . . 4 . Successful Hack 4 | . 4 . . Select Force Hacks 30 | . 30 . . Destroy Structure 88 | . 11 77 . Influence Decreases 817 | . 254 563 . Entered New Map 78 | . . 78 . Time Decay 699 | . 234 465 . Lost Part 40 | . 20 20 . Squads Dispatched 3 | . 3 . . Investigation 2 | . 2 . . Extermination . | . . . . Reinforcement 1 | . 1 . . Assault . | . . . . Garrison . | . . . . Intercept . | . . . . Searches Triggered . | . . . . Construction Impeded . | . . . . Haulers Reinforced . | . . . . Active Scanning Responses . | . . . . Cargo Convoy Interrupts . | . . . . Stealth | -11 -10 -10 -10 --------- Run | Yrd Mat Min Sub Distress Signals 1 | . 1 . . Communications Jammed . | . . . . Distress Signals . | . . . . Times Spotted 32 | . 16 12 4 Peak Tracking Total 4 | . 4 3 2 Tactical Retreats . | . . . . Traps | -11 -10 -10 -10 ------- Run | Yrd Mat Min Sub Traps Triggered 2 | . 1 . 1 Indirectly . | . . . . Trap Hack Attempts . | . . . . Triggered . | . . . . Disarmed . | . . . . Reprogrammed . | . . . . Reused . | . . . . Traps Extracted . | . . . . Installed . | . . . . Triggered . | . . . . Machines | -11 -10 -10 -10 ---------- Run | Yrd Mat Min Sub Machines Disabled . | . . . . Max in Single Turn . | . . . . Machines Repaired . | . . . . Machines Dismantled . | . . . . Machines Sabotaged . | . . . . Overloaded Fab Kills . | . . . . Hacking | -11 -10 -10 -10 --------- Run | Yrd Mat Min Sub Machines Accessed 7 | . 6 . 1 Terminals 4 | . 4 . . Fabricators . | . . . . Repair Stations . | . . . . Recycling Units 2 | . 2 . . Scanalyzers . | . . . . Garrison Access . | . . . . Total Hacks 19 | . 15 . 4 Successful 11 | . 7 . 4 Failed 8 | . 8 . . Catastrophic 2 | . 2 . . Database Lockouts . | . . . . Manual 16 | . 16 . . Terminals 11 | . 11 . . Fabricators . | . . . . Repair Stations . | . . . . Recycling Units 4 | . 4 . . Scanalyzers . | . . . . Garrison Access . | . . . . Terminal Hacks 4 | . . . 4 Record 4 | . . . 4 Fabricator Hacks . | . . . . Repair Station Hacks . | . . . . Recycling Unit Hacks . | . . . . Scanalyzer . | . . . . Garrison Access Hacks . | . . . . Unauthorized Hacks 7 | . 7 . . Terminals 4 | . 4 . . Botnet 3 | . 3 . . Skim 1 | . 1 . . Fabricators . | . . . . Repair Stations . | . . . . Recycling Units 3 | . 3 . . Monitor 1 | . 1 . . Recyclers 1 | . 1 . . Tunnel 1 | . 1 . . Scanalyzers . | . . . . Garrison Access . | . . . . Data Cores Recovered . | . . . . Used . | . . . . Hacking Detections 5 | . 5 . . Full Trace Events . | . . . . Feedback Events . | . . . . Feedback Blocked . | . . . . Robot Schematics Acquired . | . . . . Robots Built . | . . . . Authchips . | . . . . Time . | . . . . Total Robot Build Rating . | . . . . Part Schematics Acquired . | . . . . Parts Built . | . . . . Authchips . | . . . . Time . | . . . . Total Part Build Rating . | . . . . Parts Repaired . | . . . . Time . | . . . . Parts Recycled . | . . . . Recycled Matter . | . . . . Retrieved Matter . | . . . . Retrieved Components . | . . . . Parts Scanalyzed . | . . . . Part Schematics Acquired . | . . . . Parts Damaged . | . . . . Bothacking | -11 -10 -10 -10 ------------ Run | Yrd Mat Min Sub Used RIF Installer . | . . . . Robots Hacked . | . . . . Non-combat . | . . . . Combat . | . . . . Robot Hacks Applied . | . . . . Relay Couplers Released . | . . . . Fabnet Peak Effective % . | . . . . Robots Rewired . | . . . . Allies Hacked . | . . . . Hacks Repelled . | . . . . Allies | -11 -10 -10 -10 -------- Run | Yrd Mat Min Sub Total Allies 1 | . . 1 . Largest Group 1 | . . 1 . Highest-Rated Group 31 | . . 31 . Highest-Rated Ally 31 | . . 31 . Total Orders . | . . . . Ally Attacks . | . . . . Total Damage . | . . . . Kills . | . . . . Allies Corrupted . | . . . . Allies Melted . | . . . . Intel | -11 -10 -10 -10 ------- Run | Yrd Mat Min Sub Active Infowar (turns) 845 | . 543 302 . Sensors 845 | . 543 302 . Robot Analysis Total . | . . . . Derelict Logs Recovered 3 | . . 2 1 Drone Launches . | . . . . Drone Recoveries . | . . . . Exploration | -11 -10 -10 -10 ------------- Run | Yrd Mat Min Sub Turns Passed 3182 | 2 1015 1479 686 Spaces Moved 1725 | 2 456 891 376 Core 4 | . . . 4 Treads 1388 | . 125 891 372 Legs 333 | 2 331 . . Wheels . | . . . . Hover . | . . . . Flight . | . . . . Fastest Speed 120 | 120 120 160 160 Average Speed 164 | 120 177 160 161 Slowest Speed 610 | 120 610 160 300 Overloaded Moves . | . . . . Propulsion Burnouts . | . . . . Robots Hopped . | . . . . Potential Cave-ins . | . . . . Cave-ins Triggered . | . . . . Exploration Rate (%) 47 | 2 64 98 25 Regions Visited 3 Branch Regions 2 Pre-discovered Areas 3 | . 1 1 1 Known Exits Taken . | . . . . Unknown Exits Taken 3 | 1 1 1 . Scrap Searched 1 | . . 1 . Spaces Dug . | . . . . Terrain Destroyed 126 | . 10 95 21 Melee . | . . . . Projectile 1 | . . . 1 AOE 125 | . 10 95 20 Terrain Rammed . | . . . . Walls Destroyed . | . . . . Machines Disabled . | . . . . Actions | -11 -10 -10 -10 --------- Run | Yrd Mat Min Sub Total 1911 | 1 560 929 421 Wait 20 | . 4 8 8 Move 1722 | 1 455 890 376 Hop . | . . . . Pick Up 20 | . 11 9 . Fast Attach 7 | . 4 . 3 Attach 8 | . 5 3 . Detach 1 | . . . 1 Swap 4 | . 1 2 1 Drop 18 | . 10 6 2 Fire 105 | . 66 9 30 Melee . | . . . . Ram . | . . . . Kick . | . . . . Crush 6 | . 4 2 . Escape Stasis . | . . . . Rewire . | . . . . Trap . | . . . . Miscellaneous . | . . . . Route ------- -11/Scrapyard -10/Materials (discovered 3 exits: [*Mat] / [*Min] / *Sub) -10/Mines (discovered 3 exits: [*Mat x2] / *Sub) -10/Subcaves (discovered 2 exits: [*Mat x2]) History --------- Turn | Location | Event 1 | -11/Scrapyard | Discovered new exit (range 1) 3 | -11/Scrapyard | Entered Materials 4 | -10/Materials | Met a group of wandering Federalists 69 | -10/Materials | Discovered new exit (range 14) 431 | -10/Materials | Discovered new exit (range 13) 721 | -10/Materials | Build established: Mutant 813 | -10/Materials | Core integrity fell below 50% 932 | -10/Materials | Discovered new exit (range 14) 1018 | -10/Materials | Entered Mines 1086 | -10/Mines | Learned location of 1 exit from Materials 1221 | -10/Mines | Received a Rocket Launcher from a helpful Derelict 1426 | -10/Mines | Received a Mining Laser from a helpful Derelict 1480 | -10/Mines | Found a damaged Exp. Sensor Array with a note attached 1484 | -10/Mines | Found Prototype Device 1648 | -10/Mines | Discovered new exit (range 6) 1733 | -10/Mines | Discovered new exit (range 10) 1921 | -10/Mines | Discovered new exit (range 11) 2497 | -10/Mines | Entered Subcaves 2508 | -10/Subcaves | Ambushed by Subdwellers from Twisted Machinery 2577 | -10/Subcaves | Core integrity fell below 20% 2716 | -10/Subcaves | Discovered new exit (range 15) 2725 | -10/Subcaves | Learned location of Zion (-7) 2725 | -10/Subcaves | Met a Zionite searching for "candidates" 2849 | -10/Subcaves | Discovered new exit (range 5) 2894 | -10/Subcaves | Learned 2 Materials zone layouts 3092 | -10/Subcaves | Visited Clippyterm 3097 | -10/Subcaves | Learned Research security intel 3183 | -10/Subcaves | Destroyed by Piercing Trap Last Messages --------------- 03013_ Acquired 52 matter. 03082_ A thin wall crumbles away, revealing a door. 03088_ Sub. Power Source shoots sparks and powers down. 03092_ The door opens automatically. 03097_ Connecting with Clippyterm... 03097_ Current location identified: Subcaves >>Record "Clippyterm" Welcome to Clippyterm v0.53, my misguided attempt to resurrect an ancient AI. I give up. There must be something fundamentally wrong with the algorithm, because no matter how much data I collect to feed it, half the time it still manages to suggest unhelpful sample queries and responses. --DD-NU8 >>Record "0b10 Defenses" It looks like you're afraid of guards, would you like help? Data stored: Research security intel. >>Record "LU-1G1" It looks like you're researching the legendary digger of dangerously deep tunnels, unfortunately it seems not even members of the Boring Crew know what became of that one. >>Record "Botnets" It looks like you seek to become a more effective hacker when it comes to the important hacks, and I heartily recommend installing Trojan(Botnet) on at least one or two Terminals to improve your odds of success elsewhere. 03183_ Triggered Piercing Trap. 03183_ Spikes shoot up from the floor. 03183_ Critical hit (Impale). Map ----- +----------------------------------------------------+ | ???????# #?# ####??????## #????# #??## | | ???????? ## ##??###?# #????# #### ### | | ????????? #### #### #???## # # # #? | | ?????????? ^ ## #?# ##### ####? | | ???????????# ### # #???? | | ????????????# ##### #### #??# | | ?????????????# ## # ## ###" #??? ## | | ?????????????# ## ## ### [ ###### | | ???????????### ## # ## &< " ## # | | ??????????## # #### ! &"# ### | | ??????????# #?##### " " #??? | | ??????????######### # #?????#&" & #??? | | ????????????###???# ## ####?????# " # #??? | | ????????????# ##??# ##????###?## # #?? | | ?????????#### ##?# #????# #?# ## #? | | ?????????# ### # ####?# #### ##? #? | | ?????????## ## ##### ### ### #?? ##? | | ????????### ##??## ## #?? ?? | | ?????#### #?### #???#?? | | ?????# ### ## ##"" #?????? | | ?????# ## ### ### ## ####"""""##?????? | | ????## ### ##?####??## ##? """""##??????? | | ???## ## #?????????## #? "" "##???????? | | #### #??????????# #? "" #????????? | | ""### ##?????????## ##? ""##????????? | | " ## ##??????????#@ ##???? ##??????????? | | X #????###???## ##??????????????????? | | " ## ###### #?### ##???????????????????? | | ""## # ## ### #????????????????????? | | #### ## #????????????????????? | | ???# ### ####????????????????????? | | ???# ##?# # # ###???????????????????????? | | ???#####??# #### #?????????????????????????? | | ??????????# ##??# #?????????????????????????? | | ??????????###???# #????????????????????????? | | ??????????????? #????????????????????????? | | ?????????????? #????????????????????????? | | ????????????? #????????????????????????? | | ???????????# #????????????????????????? | | ???????????# #????????????????????????? | | ???????????# ????????????????????????? | | ???????????# ##???????????????????????? | | ???????????## ## ##????????????????????????? | | ????????????####?### ##?????????????????????????? | | ???????????????????####??????????????????????????? | | ?????????????????????????????????????????????????? | | ?????????????????????????????????????????????????? | | ?????????????????????????????????????????????????? | | ?????????????????????????????????????????????????? | | ?????????????????????????????????????????????????? | +----------------------------------------------------+ Best States ------------- Heat Dissipation 25 Energy Generation 15 Energy Capacity 250 Matter Stores 300 Matter Capacity 300 Sight Range 16 Robot Scan Range 14 Terrain Scan Density 10 Evasion (%) 55 Recoil Reduction 2 Item Schematics ----------------- None Robot Schematics ------------------ None Fabricated ------------ Nothing Repaired ---------- Nothing Alien Tech Used ----------------- None Achievements -------------- None Challenges ------------ None Game ------ Seed StorageStrikeReconstructor Manual? 0 Play Time 00:20:04 Cumulative 156.8 hours Start 2025.06.30 @ 19:52:58 End 2025.07.01 @ 03:13:24 Sessions 7 Manual Loads 0 Difficulty Rogue Special Mode None Game No. 299 Rogue 299 Adventurer 0 Explorer 0 Win Type - Total 0 Types 0/0/0/0/0/0/0/0/0/0 Lore% 44 Gallery% 39 Achievement% 36 Wizard Run 0 Options --------- Layout 0 ASCII 0 Keyboard 0 Movement Mouse Keybinds 0 Fullscreen 1 Font 24/Smallcaps Map View 91x25 Zoom Use 88% Tactical HUD 1 Map Filters NONE Filters NONE Steam 1 RUN: 24fde40d-5dca-4981-8e2f-145bfa879285